bitfinex-derivatives/quotes_ETHF0:USTF0_20250614
["timestamp","ask_amount","ask_price","bid_price","bid_amount"]
[1749925209734,1.79150364,2512.7,2512.6,1.47109]
[1749925210235,0.99585364,2512.7,2512.6,1.47109]
[1749925210530,0.7956,2512.9,2512.8,0.79562]
[1749925210733,0.79563,2512.8,2512.7,0.79563]
[1749925210925,0.79565,2512.7,2512.6,2.81367]
[1749925214131,0.79565,2512.7,2512.6,2.018]
[1749925214536,0.79565,2512.7,2512.6,0.6754]
[1749925214734,1.79259479,2512.7,2512.6,0.6754]
[1749925215032,0.79575,2512.4,2512.3,7.19776]
[1749925215232,0.79575,2512.4,2512.3,7.0892]
[1749925215628,0.79575,2512.4,2512.3,7.88498]
[1749925215824,0.79571,2512.6,2512.5,0.79569]
[1749925216029,0.99691493,2512.6,2512.5,3.2078]
[1749925216233,0.79572,2512.6,2512.5,0.79569]
[1749925216531,0.79572,2512.5,2512.4,7.19772]
[1749925216732,0.7957,2512.6,2512.5,0.79569]
[1749925216929,1.79265879,2512.6,2512.5,1.44489]
[1749925217335,0.99695879,2512.6,2512.5,1.44489]
[1749925218738,0.6553,2512.9,2512.8,0.79562]
[1749925219036,1.45089,2512.9,2512.8,0.79562]
[1749925219238,2.44774269,2512.9,2512.8,0.79562]
[1749925219437,1.65215269,2512.9,2512.8,0.79562]
[1749925219628,2.44774269,2512.9,2512.8,0.79562]
[1749925220033,2.44774269,2512.9,2512.5,0.06809268]
[1749925220034,0.79569,2512.6,2512.5,0.06809268]
[1749925220235,1.79254269,2512.6,2512.5,0.06809268]
[1749925220642,1.79254269,2512.6,2512.5,0.86381268]
[1749925220841,0.99685269,2512.6,2512.5,0.86381268]
[1749925221239,1.45089,2512.9,2512.8,0.79562]
[1749925221442,2.45646362,2512.9,2512.8,0.79562]
[1749925222343,0.79562,2512.8,2512.7,1.42523]
[1749925222537,1.00557362,2512.8,2512.7,1.42523]
[1749925223236,1.80119362,2512.8,2512.7,1.42523]
[1749925223740,1.00557362,2512.8,2512.7,1.42523]
[1749925224139,1.80119362,2512.8,2512.7,0.6296]
[1749925224441,1.00557362,2512.8,2512.7,1.42525]
[1749925226937,1.00819819,2512.9,2512.7,0.6296]
[1749925227142,1.00819819,2512.8,2512.7,1.42525]
[1749925227833,0.79568,2512.7,2512.5,0.06809268]
[1749925228039,1.80394418,2512.6,2512.5,0.06809268]
[1749925228236,3.08544418,2512.6,2512.5,0.06809268]
[1749925228742,3.77954418,2512.6,2512.5,0.06809268]
[1749925229745,2.98385418,2512.6,2511.9,9.04455]
[1749925230040,0.79576,2512.4,2512.2,0.79579]
[1749925230242,2.28975418,2512.3,2512.2,0.79579]
[1749925230442,1.63325418,2512.3,2512.2,0.79579]
[1749925230944,1.00825418,2512.3,2512.2,0.79579]
[1749925231143,1.42072,2512.5,2512.4,0.79575]
[1749925231332,2.42887168,2512.5,2512.4,0.79575]
[1749925232244,3.68097168,2512.5,2512.4,0.79575]
[1749925232444,2.88525168,2512.5,2512.4,0.79575]
[1749925232840,3.68097168,2512.5,2512.4,0.79575]
[1749925233141,0.79581,2512.3,2512.2,0.7958]
[1749925233340,0.79585,2512.2,2512.1,0.79582]
[1749925233544,3.05610168,2512.2,2512.1,0.79582]
[1749925234242,2.26025168,2512.2,2512.1,0.79582]
[1749925234841,3.05606168,2512.2,2512.1,0.79582]
[1749925235037,2.26025168,2512.2,2511.8,3.2078]
[1749925235239,0.79589,2512.0,2511.9,0.79588]
[1749925235543,1.00815168,2512.0,2511.9,0.79588]
[1749925235746,2.33575168,2512.0,2511.9,0.79588]
[1749925236547,1.00815168,2512.0,2511.9,0.79588]
[1749925238038,0.00596279,2512.2,2512.1,0.79584]
[1749925238646,0.80177279,2512.2,2512.1,1.45734]
[1749925238848,0.79587,2512.1,2512.0,0.79585]
[1749925239049,1.43527,2512.1,2512.0,0.79585]
[1749925239243,0.6394,2512.1,2512.0,0.79585]
[1749925239449,1.91746279,2512.2,2512.1,0.79584]
[1749925239839,2.55686279,2512.2,2512.1,0.79584]
[1749925241743,0.00596279,2512.2,2512.1,4.00364]
[1749925241948,0.00596279,2512.2,2512.1,9.00364]
[1749925242255,8.3609,2512.8,2512.7,0.79565]
[1749925242450,7.3920373,2512.8,2512.7,0.79565]
[1749925242650,1.0070373,2512.8,2512.7,0.79565]
[1749925242843,0.6807,2512.9,2512.8,0.79562]
[1749925243043,1.6876471,2512.9,2512.8,0.79562]
[1749925243452,1.0069471,2512.9,2512.8,0.79562]
[1749925245253,3.2078,2513.0,2512.9,0.79559]
[1749925245548,4.21460798,2513.0,2512.9,0.79559]
[1749925245752,5.01016798,2513.0,2512.9,0.79559]
[1749925246650,0.79561,2512.9,2512.6,0.00596279]
[1749925246855,1.48855,2512.8,2512.6,0.68736279]
[1749925247053,2.14415,2512.7,2512.6,0.80165279]
[1749925247256,3.15050536,2512.7,2512.6,0.80165279]
[1749925247457,3.15050536,2512.7,2512.6,0.00596279]
[1749925248350,3.15050536,2512.7,2512.6,0.80165279]
[1749925248557,3.15050536,2512.7,2512.6,0.00596279]
[1749925249453,2.35485536,2512.7,2512.6,0.80165279]
[1749925249657,3.15050536,2512.7,2512.6,0.80165279]
[1749925250358,2.35485536,2512.7,2512.6,0.80165279]
[1749925250854,3.15050536,2512.7,2512.6,0.80165279]
[1749925251157,2.35485536,2512.7,2512.6,0.80165279]
[1749925251555,3.15050536,2512.7,2512.6,0.80165279]
[1749925251757,2.35485536,2512.7,2512.6,0.80165279]
[1749925252158,1.00635536,2512.7,2512.6,0.80165279]
[1749925253250,5.1107,2513.0,2512.9,0.79559]
[1749925253451,6.11725309,2513.0,2512.9,0.79559]
[1749925254251,6.91281309,2513.0,2512.9,0.86368268]
[1749925254447,6.91281309,2513.0,2512.9,0.06809268]
[1749925255964,6.91281309,2513.0,2512.9,0.86368268]
[1749925256157,6.91281309,2513.0,2512.9,0.06809268]
[1749925258062,6.91281309,2513.0,2512.0,3.2078]
[1749925258063,0.79584,2512.1,2512.0,3.2078]
[1749925258260,0.79593,2511.9,2511.7,1.46145]
[1749925258465,0.79593,2511.9,2511.8,0.79594]
[1749925258759,0.7959,2512.0,2511.8,0.79594]
[1749925259163,0.79591,2511.9,2511.7,1.46145]
[1749925259361,0.79593,2511.9,2511.7,1.46145]
[1749925259563,0.79593,2511.9,2511.8,0.79594]
[1749925262263,0.79594,2511.8,2511.7,1.46145]
[1749925262657,0.79594,2511.8,2511.7,0.6655]
[1749925262859,3.29049,2512.1,2511.3,0.79609]
[1749925262860,1.98994,2511.7,2511.3,0.79609]
[1749925263162,0.79609,2511.4,2511.3,0.79609]
[1749925263360,0.79606,2511.5,2511.3,0.79609]
[1749925263663,0.79607,2511.4,2511.3,0.79609]
[1749925263857,0.79605,2511.5,2511.4,0.79606]
[1749925264261,0.79608,2511.4,2511.3,0.79608]
[1749925264558,0.79605,2511.5,2511.4,0.79605]
[1749925265259,0.7961,2511.3,2511.2,3.2078]
[1749925265866,0.7961,2511.3,2511.2,4.00393]
[1749925266164,0.7961,2511.3,2511.2,3.2078]
[1749925267064,0.7961,2511.3,2511.2,4.00393]
[1749925267369,0.79619,2511.0,2510.9,1.43641]
[1749925267559,0.79616,2511.1,2511.0,0.79618]
[1749925268163,2.15224,2511.2,2511.1,0.79616]
[1749925268362,1.3561,2511.2,2511.1,0.79616]
[1749925268567,2.15223,2511.2,2511.1,0.79616]
[1749925268773,2.15223,2511.2,2511.0,0.79617]
[1749925269268,0.79616,2511.1,2511.0,0.79617]
[1749925269468,2.15225,2511.2,2511.0,0.79617]
[1749925269670,0.79616,2511.1,2511.0,0.79617]
[1749925270269,0.79616,2511.1,2510.9,0.6402]
[1749925270270,0.7962,2511.0,2510.9,0.7962]
[1749925270474,1.3875,2511.0,2510.9,0.79622]
[1749925270768,1.3151,2511.1,2511.0,0.79619]
[1749925270969,0.79604,2511.5,2511.4,0.79604]
[1749925271171,0.79603,2511.5,2511.1,1.99039]
[1749925271368,0.79607,2511.4,2511.3,0.79607]
[1749925271671,0.7961,2511.3,2511.2,1.46271]
[1749925271877,1.3875,2511.5,2511.2,0.6666]
[1749925272168,1.3875,2511.5,2511.4,0.79607]
[1749925272362,3.2078,2511.6,2511.5,0.79603]
[1749925272565,4.0038,2511.6,2511.5,0.79603]
[1749925272764,0.79608,2511.4,2511.3,0.79608]
[1749925272967,0.7961,2511.3,2511.2,1.46271]
[1749925273365,0.7961,2511.3,2511.2,0.6666]
[1749925275062,1.99025,2511.3,2510.8,3.2078]
[1749925275374,2.6608,2511.2,2510.9,0.79622]
[1749925275574,1.298,2511.1,2510.9,0.79622]
[1749925275772,0.79619,2511.0,2510.9,0.79622]
[1749925276072,2.09418,2511.1,2511.0,0.79619]
[1749925277173,0.79619,2511.0,2510.9,0.79621]
[1749925278683,0.7962,2511.0,2510.9,0.7962]
[1749925279377,1.298,2511.1,2510.8,0.79623]
[1749925279578,0.79622,2510.9,2510.8,0.79623]
[1749925279988,1.298,2511.1,2510.7,0.6585]
[1749925280285,0.79622,2511.0,2510.9,0.79622]
[1749925280485,2.09418,2511.1,2511.0,0.79619]
[1749925280686,0.7962,2511.0,2510.9,0.7962]
[1749925280984,1.3628,2511.2,2511.1,0.79616]
[1749925281286,1.46553,2511.2,2511.1,0.79616]
[1749925281785,0.6694,2511.2,2511.1,0.79616]
[1749925282179,6.383,2511.4,2511.1,0.6493]
[1749925282385,6.383,2511.4,2511.3,0.7961]
[1749925282685,7.17907,2511.4,2511.3,0.7961]
[1749925283081,0.6875,2511.5,2511.4,0.79607]
[1749925283286,7.0705,2511.5,2511.4,0.79607]
[1749925283482,7.86655,2511.5,2511.4,0.79607]
[1749925283686,7.0705,2511.5,2511.4,0.79607]
[1749925283984,2.02116279,2511.8,2511.2,1.99031]
[1749925284187,0.796,2511.7,2511.6,0.796]
[1749925285987,1.34736279,2511.8,2511.7,0.79597]
[1749925286182,0.00596279,2511.8,2511.7,0.79597]
[1749925286383,0.80190279,2511.8,2511.7,0.79597]
[1749925286583,0.00596279,2511.8,2511.7,0.79597]
[1749925287485,1.02054669,2511.8,2511.7,0.79597]
[1749925287790,0.79598,2511.7,2511.6,0.796]
[1749925288182,0.80192279,2511.8,2511.7,0.79597]
[1749925288382,1.8170412,2511.8,2511.7,0.79597]
[1749925289088,1.0210812,2511.8,2511.7,0.79597]
[1749925290785,0.00596279,2511.8,2511.7,0.79597]
[1749925291192,3.2078,2512.2,2512.1,0.79584]
[1749925291386,5.01966754,2512.2,2512.1,0.79584]
[1749925291781,4.00361,2512.2,2512.1,0.79584]
[1749925291984,5.01980561,2512.2,2512.1,0.79584]
[1749925292393,0.79586,2512.1,2512.0,0.79585]
[1749925293088,0.79584,2512.2,2512.1,0.79584]
[1749925293289,0.79586,2512.1,2512.0,0.79586]
[1749925294098,1.90176,2512.1,2512.0,0.79586]
[1749925294391,1.90174,2512.1,2512.0,0.79586]
[1749925295297,0.79588,2512.0,2511.9,0.00596279]
[1749925295495,2.7085,2512.0,2511.9,0.80187279]
[1749925295897,3.72534644,2512.0,2511.9,0.80187279]
[1749925296295,4.52122644,2512.0,2511.9,0.80187279]
[1749925296595,3.07104644,2512.0,2511.9,0.80187279]
[1749925296795,1.1059,2512.1,2512.0,0.79588]
[1749925296993,2.12252617,2512.1,2512.0,0.79588]
[1749925297192,2.91836617,2512.1,2512.0,0.79588]
[1749925297698,2.12252617,2512.1,2512.0,0.79588]
[1749925298700,1.1059,2512.1,2512.0,0.79588]
[1749925299201,2.12169216,2512.1,2512.0,0.79588]
[1749925299396,2.91753216,2512.1,2512.0,0.79588]
[1749925299596,1.90174,2512.1,2512.0,0.79588]
[1749925299893,0.79588,2512.0,2511.9,1.47095279]
[1749925300289,0.79588,2512.0,2511.9,0.67506279]
[1749925300693,0.79588,2512.0,2511.9,1.47097279]
[1749925301194,1.90177,2512.1,2512.0,0.79588]
[1749925301394,3.50452921,2512.1,2512.0,0.79588]
[1749925302092,4.30036921,2512.1,2512.0,0.79588]
[1749925302492,2.91726921,2512.1,2512.0,0.79588]
[1749925303694,1.90174,2512.1,2512.0,0.79588]
[1749925305603,2.91660329,2512.1,2512.0,0.79588]
[1749925305802,1.1059,2512.1,2512.0,0.79588]
[1749925311006,0.79588,2512.0,2511.9,4.67874279]
[1749925311203,2.4329,2512.1,2512.0,0.79588]
[1749925311403,2.34345659,2512.1,2512.0,0.79588]
[1749925311607,3.13929659,2512.1,2512.0,0.79588]
[1749925312106,3.13929659,2512.1,2512.0,0.86397268]
[1749925312308,1.01645659,2512.1,2512.0,0.86397268]
[1749925313597,1.81229659,2512.1,2512.0,0.86397268]
[1749925315104,1.01645659,2512.1,2512.0,0.86397268]
[1749925315411,2.12145659,2512.1,2512.0,0.86397268]
[1749925315707,2.91729659,2512.1,2512.0,0.86397268]
[1749925316308,4.22619659,2512.1,2512.0,0.86397268]
[1749925316910,4.22619659,2512.1,2512.0,0.06809268]
[1749925317111,4.85579659,2512.1,2512.0,0.06809268]
[1749925321618,7.23536685,2512.1,2512.0,0.06809268]
[1749925321816,17.81752685,2512.1,2511.6,0.79598]
[1749925322018,0.79603,2511.6,2511.5,0.79602]
[1749925322218,1.81248659,2511.6,2511.5,0.79602]
[1749925322617,1.01645659,2511.6,2511.5,0.79602]
[1749925323118,0.6553,2511.6,2511.5,0.79602]
[1749925323319,1.67175659,2511.6,2511.5,0.79602]
[1749925324225,2.46775659,2511.6,2511.5,0.79602]
[1749925324424,2.96355659,2511.6,2511.5,0.79602]
[1749925325829,2.96355659,2511.6,2511.3,3.895]
[1749925326129,0.79607,2511.4,2511.3,3.2078]
[1749925326424,1.81252659,2511.4,2511.3,3.2078]
[1749925326613,3.08422659,2511.4,2511.3,3.2078]
[1749925327325,0.79613,2511.2,2511.1,1.44305]
[1749925327624,1.81258659,2511.2,2511.1,0.79615]
[1749925327825,1.01645659,2511.2,2511.1,0.79615]
[1749925328222,3.2078,2511.6,2511.5,0.79603]
[1749925328223,2.06771,2511.6,2511.5,0.79603]
[1749925328424,3.76896342,2511.6,2511.5,0.79603]
[1749925328722,1.70125342,2511.6,2511.5,0.79603]
[1749925328921,1.01825342,2511.6,2511.5,0.79603]
[1749925329122,3.6536,2511.7,2511.6,0.796]
[1749925329321,1.01788498,2511.7,2511.6,4.0038]
[1749925329626,2.11074,2511.8,2511.7,0.79597]
[1749925330027,2.67016943,2511.8,2511.7,0.79597]
[1749925330228,1.87422943,2511.8,2511.4,1.2829]
[1749925330526,1.65226,2511.8,2511.4,1.2829]
[1749925330729,0.79598,2511.7,2511.6,0.79598]
[1749925331121,1.65226,2511.8,2511.7,0.79597]
[1749925331322,2.6702132,2511.8,2511.7,0.79597]
[1749925331719,1.8742532,2511.8,2511.4,0.6385]
[1749925331926,2.9720532,2511.7,2511.4,0.6385]
[1749925332224,1.8139532,2511.6,2511.5,0.79603]
[1749925332618,2.4866532,2511.6,2511.5,0.79603]
[1749925332818,1.6906532,2511.6,2511.5,0.79603]
[1749925333024,0.4585,2511.7,2511.6,0.796]
[1749925333619,1.25447,2511.7,2511.6,0.796]
[1749925333815,2.27232436,2511.7,2511.6,0.796]
[1749925334127,0.796,2511.6,2511.5,0.6549]
[1749925334427,0.796,2511.6,2511.3,3.2078]
[1749925334428,0.79609,2511.4,2511.3,0.79609]
[1749925334623,2.17526,2511.5,2511.4,0.79607]
[1749925334818,0.79607,2511.4,2511.3,0.79608]
[1749925335420,1.01815906,2511.4,2511.2,6.379]
[1749925335725,0.79612,2511.3,2511.1,1.46115]
[1749925335922,0.79612,2511.3,2511.2,0.79613]
[1749925336230,1.3792,2511.5,2511.1,0.665]
[1749925336231,1.3792,2511.5,2511.1,1.46114]
[1749925336422,0.79612,2511.3,2511.1,1.46114]
[1749925336731,0.79613,2511.2,2511.1,1.46115]
[1749925336931,1.44803,2511.2,2511.1,1.46115]
[1749925337423,0.6519,2511.2,2511.1,0.79615]
[1749925337728,1.44803,2511.2,2511.1,0.79615]
[1749925338428,0.79616,2511.1,2511.0,3.2078]
[1749925338625,0.79622,2510.9,2510.8,1.2981]
[1749925338828,0.79622,2511.0,2510.8,1.42423]
[1749925339030,1.97356279,2511.1,2510.8,1.42423]
[1749925339226,2.13492,2511.0,2510.8,0.628]
[1749925339530,2.13492,2511.0,2510.9,0.79622]
[1749925339727,3.15211684,2511.0,2510.9,0.79622]
[1749925340134,2.13492,2511.0,2510.9,0.79622]
[1749925340628,1.3387,2511.0,2510.9,0.79622]
[1749925340830,2.13489,2511.0,2510.9,0.79622]
[1749925341839,1.3387,2511.0,2510.9,0.79622]
[1749925342131,0.83416279,2511.1,2511.0,0.79619]
[1749925342326,1.85119597,2511.1,2511.0,0.79619]
[1749925342633,0.83416279,2511.1,2511.0,0.79619]
[1749925343028,1.85134791,2511.1,2511.0,0.79619]
[1749925343225,1.85127354,2511.1,2511.0,0.79619]
[1749925343533,2.64764149,2511.1,2511.0,0.79619]
[1749925344131,1.63034279,2511.1,2511.0,0.79619]
[1749925344532,2.64755923,2511.1,2511.0,0.79619]
[1749925344925,2.01865923,2511.1,2511.0,0.79619]
[1749925345126,1.00144279,2511.1,2511.0,0.79619]
[1749925345527,0.20526279,2511.1,2511.0,0.79619]
[1749925346333,1.00142279,2511.1,2511.0,0.79619]
[1749925346530,0.20526279,2511.1,2511.0,0.79619]
[1749925352945,1.00142279,2511.1,2511.0,0.79619]
[1749925353135,1.22439166,2511.1,2511.0,0.79619]
[1749925353441,1.22443269,2511.1,2511.0,0.79619]
[1749925353834,2.02059269,2511.1,2511.0,0.79619]
[1749925354033,1.22443269,2511.1,2511.0,0.79619]
[1749925354243,0.20526279,2511.1,2511.0,0.79619]
[1749925354734,1.22452022,2511.1,2511.0,0.86428268]
[1749925354941,0.20526279,2511.1,2511.0,0.86428268]
[1749925355144,0.20526279,2511.1,2511.0,2.13688268]
[1749925355336,2.02766279,2511.1,2511.0,2.13688268]
[1749925355844,2.02766279,2511.1,2511.0,7.13688268]
[1749925356341,2.02766279,2511.1,2511.0,2.13688268]
[1749925356537,3.2078,2512.6,2511.1,1.99038]
[1749925356737,1.81522151,2512.5,2512.3,0.79576]
[1749925356939,1.01949151,2512.4,2512.3,0.79576]
[1749925357139,2.37459151,2512.4,2512.3,0.79576]
[1749925358143,3.90836279,2512.6,2512.5,0.79572]
[1749925358447,1.02389057,2512.6,2512.5,0.79572]
[1749925358844,0.00596279,2512.6,2512.5,0.79572]
[1749925359647,0.00596279,2512.6,2512.5,1.44132]
[1749925363854,0.79554,2513.1,2512.6,1.9892]
[1749925364050,0.6616,2513.0,2512.9,0.79559]
[1749925364251,0.6616,2513.0,2512.9,25.33759]
[1749925365150,3.90736279,2513.2,2513.1,0.79553]
[1749925365965,5.97217279,2513.2,2513.1,0.79553]
[1749925366149,0.79553,2513.1,2513.0,25.33055]
[1749925366350,1.2693,2513.1,2513.0,25.33055]
[1749925366653,2.06483,2513.1,2513.0,25.33055]
[1749925367157,1.2693,2513.1,2513.0,25.33055]
[1749925367655,2.06486,2513.1,2512.7,3.2078]
[1749925367957,0.6666,2513.0,2512.9,0.79559]
[1749925368259,2.0329,2513.0,2512.9,0.79559]
[1749925368456,2.82846,2513.0,2512.9,0.79559]
[1749925368759,2.82846,2513.0,2512.9,24.524]
[1749925369455,2.82846,2513.0,2512.9,25.31959]
[1749925369853,2.82846,2513.0,2512.9,0.79559]
[1749925370764,0.79559,2512.9,2512.8,0.7956]
[1749925371057,1.3879,2512.9,2512.7,24.524]
[1749925371262,4.5957,2512.9,2512.5,24.519]
[1749925371556,0.79567,2512.7,2512.6,0.79568]
[1749925371858,0.79569,2512.6,2512.5,25.3157]
[1749925372063,2.86599,2512.6,2512.5,25.3157]
[1749925373461,0.79572,2512.5,2512.4,4.00353]
[1749925373662,0.79572,2512.5,2512.3,0.79578]
[1749925373663,0.79577,2512.4,2512.3,0.79578]
[1749925373961,0.79578,2512.3,2512.2,25.30679]
[1749925374151,2.09938,2512.3,2512.2,25.30679]
[1749925374555,1.3036,2512.3,2512.1,4.00959279]
[1749925374750,0.6691,2512.2,2512.1,25.31179279]
[1749925375262,1.9727,2512.2,2512.1,25.31179279]
[1749925375460,2.76851,2512.2,2512.1,0.00596279]
[1749925379854,2.76851,2512.2,2512.1,0.80180279]
[1749925380057,2.76851,2512.2,2512.1,0.00596279]
[1749925380966,3.96227,2512.2,2511.7,25.29095]
[1749925381159,0.79592,2511.9,2511.8,0.79593]
[1749925381554,0.79592,2511.9,2511.7,24.493]
[1749925381555,0.79596,2511.8,2511.7,0.79596]
[1749925381760,1.42156,2511.8,2511.7,0.79596]
[1749925382063,1.42157,2511.8,2511.6,24.492]
[1749925382259,1.2607,2511.7,2511.6,25.288]
[1749925383666,1.2607,2511.7,2511.6,0.796]
[1749925383871,1.2607,2511.7,2511.6,25.287]
[1749925384263,0.6256,2511.8,2511.7,0.79597]
[1749925384767,1.9895,2511.8,2511.7,0.79597]
[1749925384957,2.78544,2511.8,2511.7,0.79597]
[1749925386772,1.9895,2511.8,2511.7,0.79597]
[1749925387266,1.9895,2511.8,2511.5,3.96225547]
[1749925387469,2.78545,2511.8,2511.6,24.477]
[1749925387762,1.9895,2511.8,2511.5,4.75827547]
[1749925387964,0.796,2511.6,2511.5,0.07405547]
[1749925388163,0.7961,2511.3,2511.2,4.00393]
[1749925388363,0.7961,2511.3,2511.2,3.2078]
[1749925389166,2.7475,2511.3,2511.2,3.2078]
[1749925389368,1.9514,2511.3,2511.2,4.00393]
[1749925389766,2.7475,2511.3,2511.2,4.00393]
[1749925390069,1.9514,2511.3,2511.2,4.00393]
[1749925390664,2.7475,2511.3,2511.2,4.00393]
[1749925391773,2.7475,2511.3,2511.2,3.2078]
[1749925392774,0.79619,2511.1,2511.0,0.79619]
[1749925392966,0.79619,2511.1,2510.9,4.6709]
[1749925393166,0.79617,2511.1,2511.0,0.79618]
[1749925394267,0.79615,2511.2,2511.1,0.79616]
[1749925394462,1.9514,2511.3,2509.8,3.98277]
[1749925394668,0.79632,2510.6,2510.5,0.79633]
[1749925394868,1.99059,2510.9,2510.4,25.8143]
[1749925395065,0.79633,2510.6,2510.5,0.79634]
[1749925395267,0.79635,2510.5,2510.4,1.3463]
[1749925395464,3.90539,2510.9,2510.4,26.61066]
[1749925395773,4.29611485,2510.9,2510.4,26.61066]
[1749925396071,0.79634,2510.6,2510.5,0.79635]
[1749925396272,4.29611485,2510.9,2510.5,0.79635]
[1749925396573,0.79635,2510.5,2510.4,2.14267]
[1749925396877,0.79634,2510.6,2510.5,0.79634]
[1749925397077,0.79635,2510.5,2510.4,26.61067]
[1749925397370,0.7964,2510.4,2509.9,3.2078]
[1749925397569,0.80237479,2510.4,2510.2,0.79643]
[1749925397774,0.00597479,2510.4,2509.9,5.85]
[1749925398071,0.79645,2510.2,2510.0,0.79649]
[1749925398263,0.79645,2510.2,2510.1,0.79648]
[1749925398469,0.79645,2510.2,2509.9,28.9846]
[1749925398668,0.00597479,2510.4,2510.1,0.79648]
[1749925398868,1.34907479,2510.4,2510.1,0.79647]
[1749925399071,0.79644,2510.3,2510.1,0.79647]
[1749925399276,0.79644,2510.3,2508.9,11.60788]
[1749925399277,3.2078,2510.2,2508.9,11.60788]
[1749925399478,0.79669,2509.5,2509.1,0.79677]
[1749925399673,0.79675,2509.3,2509.0,3.8649]
[1749925399872,0.79672,2509.4,2509.0,3.8649]
[1749925400075,0.79669,2509.5,2509.1,0.79678]
[1749925400377,3.2078,2509.6,2509.1,0.6486]
[1749925400583,1.3431,2509.5,2509.1,0.6486]
[1749925400875,3.2078,2509.9,2509.8,0.79657]
[1749925401076,0.79649,2510.1,2509.8,0.79657]
[1749925401278,9.6158,2510.3,2509.7,0.6486]
[1749925401478,4.00433,2510.0,2509.8,0.674]
[1749925401779,0.79653,2510.0,2509.8,0.674]
[1749925402081,0.79657,2509.8,2509.7,0.6486]
[1749925402279,0.7965,2510.1,2509.7,0.6486]
[1749925402473,0.7965,2510.1,2509.8,0.79656]
[1749925402675,0.7965,2510.1,2509.8,1.47056]
[1749925402876,0.79646,2510.2,2509.9,0.79653]
[1749925403077,4.4669,2510.3,2510.0,0.79651]
[1749925403078,5.26333,2510.3,2510.0,0.79651]
[1749925403275,5.26333,2510.3,2510.0,0.7965]
[1749925403479,0.79647,2510.2,2509.9,2.16123]
[1749925403678,4.4669,2510.3,2509.9,1.3647]
[1749925403679,3.2078,2510.3,2509.9,1.3647]
[1749925403881,3.2078,2510.3,2510.1,0.79646]
[1749925404086,4.00423,2510.3,2510.0,0.7965]
[1749925404382,3.2078,2510.3,2509.9,1.3647]
[1749925405074,3.2078,2510.3,2510.1,0.79647]
[1749925405584,4.00421,2510.3,2510.1,0.79647]
[1749925405778,3.2078,2510.3,2510.2,0.79645]
[1749925406983,3.2078,2510.3,2510.2,25.29945]
[1749925407184,3.2078,2510.7,2510.2,29.503]
[1749925407381,4.0041,2510.7,2510.3,2.7073]
[1749925407582,3.2078,2510.7,2510.4,0.86445268]
[1749925407882,0.79635,2510.5,2510.4,6.45809268]
[1749925408075,0.79635,2510.5,2510.4,0.06809268]
[1749925408275,0.79635,2510.5,2510.4,0.86447268]
[1749925408982,0.79634,2510.6,2510.5,0.79635]
[1749925409376,4.01007479,2510.7,2510.5,0.79635]
[1749925409885,0.80227479,2510.7,2510.5,0.79635]
[1749925410481,0.00597479,2510.7,2510.4,0.06809268]
[1749925410784,0.79635,2510.5,2510.4,0.06809268]
[1749925411086,0.79641,2510.3,2510.2,0.00597479]
[1749925411785,2.14021,2510.3,2510.2,0.00597479]
[1749925413189,0.79637,2510.5,2510.2,0.00597479]
[1749925413484,7.86574,2510.6,2510.4,0.79638]
[1749925413787,0.79635,2510.5,2510.4,0.86447268]
[1749925414186,1.47574,2510.6,2510.4,0.86447268]
[1749925414486,0.6794,2510.6,2510.5,0.79635]
[1749925414698,1.47574,2510.6,2510.4,0.79636]
[1749925414989,1.47574,2510.6,2510.5,0.79635]
[1749925415190,0.00597479,2510.7,2510.6,0.79632]
[1749925416993,0.00597479,2510.7,2510.6,2.15782]
[1749925417299,3.2078,2511.1,2511.0,0.79619]
[1749925417488,4.00398,2511.1,2510.9,0.79621]
[1749925417686,0.79621,2511.0,2510.7,1.3615]
[1749925417987,3.2078,2511.1,2510.5,3.8505]
[1749925418194,0.79635,2510.5,2510.4,0.6595]
[1749925418391,0.79639,2510.4,2510.2,10.46829747]
[1749925418592,1.366,2510.8,2510.2,9.67186747]
[1749925418892,1.366,2510.8,2510.5,4.00414]
[1749925419092,0.79632,2510.6,2510.5,3.2078]
[1749925420897,0.79631,2510.7,2510.5,4.00415]
[1749925421088,2.0174,2510.8,2510.5,4.00415]
[1749925421488,0.79632,2510.6,2510.5,3.2078]
[1749925422094,0.79632,2510.6,2510.5,4.00415]
[1749925422694,0.79632,2510.6,2510.5,3.2078]
[1749925423904,1.82434148,2510.6,2510.5,3.2078]
[1749925430197,1.02802148,2510.6,2510.3,0.79641]
[1749925430401,1.02802148,2510.6,2510.2,7.19240479]
[1749925430606,0.79641,2510.4,2510.2,7.19240479]
[1749925430900,2.0215,2510.5,2510.2,7.19240479]
[1749925430901,0.79641,2510.3,2510.2,7.19240479]
[1749925431094,0.7964,2510.4,2510.3,0.79641]
[1749925431301,2.0215,2510.5,2510.2,7.19239479]
[1749925431501,0.79641,2510.4,2510.2,7.19239479]
[1749925431894,0.79641,2510.4,2510.3,0.79641]
[1749925432405,2.81787,2510.5,2510.4,0.79638]
[1749925432702,0.7964,2510.4,2510.3,0.79641]
[1749925433403,1.82670613,2510.4,2510.3,0.79641]
[1749925436106,0.7964,2510.4,2510.3,0.79641]
[1749925436305,1.82716253,2510.4,2510.3,0.79641]
[1749925437499,0.79641,2510.3,2510.2,0.80240479]
[1749925438610,0.79641,2510.3,2510.2,0.00597479]
[1749925438914,1.82718305,2510.3,2510.2,0.00597479]
[1749925440910,2.51538305,2510.3,2510.2,0.00597479]
[1749925441410,3.80778305,2510.3,2510.2,0.00597479]
[1749925444910,3.80778305,2510.3,2510.2,0.07406747]
[1749925445710,3.80778305,2510.3,2509.8,1.48375]
[1749925445711,3.01137305,2510.3,2509.8,1.48375]
[1749925445909,0.79654,2509.9,2509.8,1.48375]
[1749925446405,1.82731305,2509.9,2509.8,0.6872]
[1749925446800,0.79657,2509.8,2509.7,3.2078]